bitfinex-derivatives/quotes_SOLF0:USTF0_20241008
["timestamp","ask_amount","ask_price","bid_price","bid_amount"]
[1728400095338,0.12502,144.23,144.21,16.65]
[1728400095521,0.12502,144.23,144.22,3.4681]
[1728400101034,0.12502,144.23,144.17,26.63]
[1728400101223,0.12502,144.23,144.18,6.2]
[1728400101435,0.12502,144.23,144.21,3.4681]
[1728400101632,0.12502,144.23,144.18,6.2]
[1728400102040,0.12502,144.23,144.21,3.4682]
[1728400102237,0.12502,144.23,144.18,6.2]
[1728400102738,0.12502,144.23,144.22,3.4681]
[1728400103638,0.12502,144.23,144.22,9.6681]
[1728400105840,10.0,144.24,144.23,3.4678]
[1728400106437,7.9488,144.24,144.23,3.4678]
[1728400111034,7.9488,144.24,144.22,6.2]
[1728400111838,7.9488,144.24,144.2,1.3127]
[1728400112139,7.9488,144.24,144.21,3.4683]
[1728400112338,7.9488,144.24,144.2,7.5127]
[1728400113137,7.9488,144.24,144.21,3.4683]
[1728400113436,7.9488,144.24,144.2,7.5127]
[1728400114539,7.9488,144.24,144.22,3.468]
[1728400116543,7.9488,144.24,144.2,7.5127]
[1728400116851,7.9488,144.24,144.23,3.4678]
[1728400122645,7.9488,144.24,144.21,3.4681]
[1728400122850,7.9488,144.24,144.2,6.2]
[1728400124250,7.9488,144.24,144.21,3.4683]
[1728400124453,7.9488,144.24,144.2,6.2]
[1728400124854,7.9488,144.24,144.23,3.4678]
[1728400125154,7.9488,144.24,144.2,22.84]
[1728400125352,7.9488,144.24,144.21,3.4682]
[1728400125559,7.9488,144.24,144.17,1.50312]
[1728400125560,7.9488,144.24,144.19,6.2]
[1728400125777,7.9488,144.24,144.17,1.50312]
[1728400125778,25.9665,144.24,144.17,0.12502]
[1728400125961,16.64,144.21,144.17,0.12502]
[1728400126953,3.469,144.19,144.17,0.12502]
[1728400127850,3.4695,144.17,144.13,3.4701]
[1728400128252,1.3777,144.18,144.12,71.81112193]
[1728400128752,1.3777,144.18,144.12,88.45112193]
[1728400129850,4.8469,144.18,144.14,3.4699]
[1728400130857,1.3777,144.18,144.12,88.45112193]
[1728400131055,1.3777,144.18,144.14,16.64]
[1728400131353,1.3319,144.22,144.16,16.64]
[1728400131659,1.3319,144.22,144.2,3.4685]
[1728400132253,1.3319,144.22,144.21,3.4683]
[1728400133355,4.8,144.22,144.19,3.4687]
[1728400133657,1.3319,144.22,144.17,22.72]
[1728400133918,1.3319,144.22,144.17,26.24994015]
[1728400134482,1.3319,144.22,144.2,3.4684]
[1728400134751,1.3319,144.22,144.17,9.61375518]
[1728400134947,1.3319,144.22,144.2,3.4685]
[1728400137153,1.3319,144.22,144.18,16.64]
[1728400137368,1.3319,144.22,144.17,6.08]
[1728400137546,17.9719,144.22,144.16,6.08]
[1728400137757,1.3257,144.21,144.16,6.08]
[1728400137949,3.469,144.19,144.16,6.08]
[1728400138557,3.469,144.19,144.16,9.5494]
[1728400139153,3.469,144.19,144.16,3.4694]
[1728400139656,3.4687,144.2,144.17,3.4693]
[1728400140256,3.4687,144.2,144.14,22.72]
[1728400140468,3.4687,144.2,144.17,3.4692]
[1728400140663,1.3257,144.21,144.14,22.72]
[1728400140887,1.3257,144.21,144.19,3.4687]
[1728400142558,1.3257,144.21,144.16,16.64]
[1728400142800,1.3319,144.22,144.21,3.4683]
[1728400143077,0.12502,144.23,144.2,16.64]
[1728400143376,0.12502,144.23,144.22,20.1081]
[1728400145165,0.12502,144.23,144.22,26.1881]
[1728400148366,0.12502,144.29,144.27,3.4667]
[1728400152192,3.4667,144.28,144.25,3.4672]
[1728400152392,16.76502,144.29,144.21,16.64]
[1728400152592,16.76502,144.29,144.23,6.08]
[1728400152795,3.4668,144.28,144.25,3.4672]
[1728400153090,0.12502,144.29,144.23,22.72]
[1728400153303,0.12502,144.29,144.28,3.4666]
[1728400153604,0.12502,144.29,144.23,22.72]
[1728400153899,3.59162,144.29,144.26,3.4671]
[1728400154682,3.4667,144.28,144.26,3.4671]
[1728400154891,16.76502,144.29,144.23,6.08]
[1728400155690,16.76502,144.29,144.2,16.64]
[1728400155993,16.76502,144.29,144.22,6.08]
[1728400156294,3.467,144.27,144.24,3.4676]
[1728400157395,3.467,144.27,144.25,3.4674]
[1728400157585,3.467,144.27,144.21,6.08]
[1728400157992,3.467,144.27,144.24,3.4674]
[1728400158200,3.4671,144.26,144.24,3.4674]
[1728400158415,16.76502,144.29,144.24,3.4674]
[1728400158598,16.76502,144.29,144.17,158.68443019]
[1728400158599,16.64,144.27,144.17,158.68443019]
[1728400158895,16.64,144.25,144.17,0.12502]
[1728400159099,20.07395535,144.25,144.17,0.12502]
[1728400159993,20.07395535,144.25,144.18,3.4689]
[1728400160494,3.4682,144.22,144.19,3.4686]
[1728400160690,3.4682,144.22,144.17,0.12502]
[1728400160995,3.4682,144.22,144.19,3.4687]
[1728400161301,22.72,144.23,144.17,0.12502]
[1728400161606,3.4688,144.19,144.17,0.12502]
[1728400162094,1.4287,144.2,144.17,0.12502]
[1728400162309,4.8974,144.2,144.17,3.59412]
[1728400162495,4.8974,144.2,144.17,0.12502]
[1728400162995,1.4287,144.2,144.19,3.4688]
[1728400163695,16.64,144.25,144.17,16.76502]
[1728400164011,24.1487,144.25,144.17,16.76502]
[1728400164206,24.1487,144.25,144.17,22.84502]
[1728400164397,3.4678,144.24,144.19,3.4687]
[1728400164709,3.4678,144.24,144.17,22.84502]
[1728400164998,3.4678,144.24,144.21,3.4682]
[1728400165396,24.1487,144.25,144.17,22.84502]
[1728400165592,10.9763,144.25,144.22,3.4679]
[1728400165796,7.5087,144.25,144.17,22.84502]
[1728400166107,3.4678,144.24,144.21,3.4682]
[1728400167899,3.4679,144.23,144.21,3.4682]
[1728400169011,4.8961,144.25,144.17,22.84502]
[1728400169202,1.4287,144.25,144.17,22.84502]
[1728400170101,3.4678,144.24,144.17,22.84502]
[1728400170707,3.4678,144.24,144.21,3.4682]
[1728400170903,3.4678,144.24,144.17,22.84502]
[1728400171510,3.4678,144.24,144.21,3.4682]
[1728400171703,3.4678,144.24,144.17,22.84502]
[1728400171899,3.4678,144.24,144.21,3.4681]
[1728400172405,1.4287,144.25,144.17,22.84502]
[1728400172406,1.4287,144.25,144.19,16.64]
[1728400172603,4.8962,144.25,144.19,16.64]
[1728400173120,1.4287,144.25,144.23,3.4678]
[1728400173302,1.4287,144.25,144.19,16.64]
[1728400173511,1.4287,144.25,144.2,16.64]
[1728400174336,4.8961,144.25,144.23,3.4677]
[1728400174807,1.4287,144.25,144.23,3.4677]
[1728400175326,1.4287,144.25,144.2,16.64]
[1728400176311,1.4287,144.25,144.23,3.4677]
[1728400177315,1.4287,144.25,144.2,16.64]
[1728400177611,1.3454,144.26,144.2,16.64]
[1728400177810,3.467,144.27,144.2,16.64]
[1728400178028,25.69412,144.29,144.21,6.08]
[1728400178317,3.4672,144.26,144.23,3.4678]
[1728400179617,3.4672,144.26,144.21,6.08]
[1728400179823,3.4672,144.26,144.24,3.4675]
[1728400182718,3.467,144.27,144.24,3.4675]
[1728400183125,25.69412,144.29,144.24,3.4675]
[1728400183719,3.467,144.27,144.24,3.4675]
[1728400184313,3.4673,144.26,144.24,3.4675]
[1728400184512,25.69412,144.29,144.23,3.4677]
[1728400184912,3.4675,144.25,144.23,3.4677]
[1728400185721,3.4672,144.26,144.24,3.4676]
[1728400192660,3.4672,144.26,144.22,10.65]
[1728400192821,3.467,144.27,144.25,3.4672]
[1728400194025,14.117,144.27,144.25,3.4672]
[1728400194938,14.117,144.27,144.24,3.4675]
[1728400195330,14.117,144.27,144.22,10.65]
[1728400195536,3.4672,144.26,144.24,3.4674]
[1728400196231,14.117,144.27,144.25,3.4674]
[1728400197823,3.4675,144.25,144.23,3.4678]
[1728400198037,10.65,144.26,144.2,16.73]
[1728400198330,10.65,144.26,144.22,10.65]
[1728400198630,14.1172,144.26,144.24,3.4675]
[1728400200326,10.65,144.27,144.22,10.65]
[1728400200635,13.62412,144.29,144.24,10.65]
[1728400200944,15.65752,144.29,144.27,3.4669]
[1728400201148,15.65752,144.29,144.24,10.65]
[1728400201538,15.65752,144.29,144.26,3.4669]
[1728400201724,15.65752,144.29,144.24,10.65]
[1728400202133,15.65752,144.29,144.26,3.467]
[1728400202735,10.65,144.28,144.26,3.467]
[1728400202941,10.65,144.27,144.24,3.4674]
[1728400203934,10.65,144.27,144.21,11.9963]
[1728400203935,14.117,144.27,144.25,3.4673]
[1728400204735,3.467,144.27,144.25,3.4673]
[1728400205542,10.65,144.26,144.17,0.12502]
[1728400205864,10.65,144.21,144.17,0.12502]
[1728400206030,14.1185,144.21,144.18,3.4689]
[1728400206625,14.1185,144.21,144.17,0.12502]
[1728400207030,3.4686,144.2,144.17,0.12502]
[1728400207635,3.4686,144.2,144.17,3.59412]
[1728400210538,3.4691,144.18,144.17,0.12502]
[1728400211937,16.66,144.19,144.11,0.12502]
[1728400212131,3.4697,144.16,144.11,6.20502]
[1728400212439,3.4697,144.16,144.13,3.4701]
[1728400213133,16.66,144.17,144.11,0.12502]
[1728400213340,3.4699,144.15,144.11,0.12502]
[1728400213534,16.66,144.17,144.11,0.12502]
[1728400213939,3.4702,144.14,144.11,3.59562]
[1728400214639,16.66,144.15,144.11,0.12502]
[1728400215440,1.3893,144.18,144.11,6.20502]
[1728400215742,22.74,144.19,144.11,6.20502]
[1728400216436,3.4691,144.18,144.11,6.20502]
[1728400216635,3.4691,144.18,144.12,16.66]
[1728400216831,16.66,144.19,144.12,16.66]
[1728400217036,16.66,144.19,144.11,6.20502]
[1728400217437,3.4689,144.19,144.15,3.4695]
[1728400217832,1.3249,144.21,144.12,16.66]
[1728400218039,4.7934,144.21,144.14,16.66]
[1728400218245,4.7934,144.21,144.15,6.08]
[1728400218535,1.3249,144.21,144.15,6.08]
[1728400219136,2.7899,144.22,144.15,6.08]
[1728400219534,1.4006,144.22,144.2,3.4684]
[1728400219744,1.4006,144.22,144.15,6.08]
[1728400220140,1.4006,144.22,144.2,3.4685]
[1728400220636,18.0606,144.22,144.15,6.06]
[1728400220847,16.66,144.19,144.11,0.12502]
[1728400221044,16.66,144.19,144.12,6.06]
[1728400221230,20.1288,144.19,144.16,3.4694]
[1728400221742,16.66,144.19,144.12,6.06]
[1728400221947,16.66,144.19,144.17,3.4692]
[1728400222152,16.66,144.19,144.12,6.06]
[1728400222444,20.129,144.19,144.16,3.4694]
[1728400223540,6.06,144.2,144.12,6.06]
[1728400223937,6.06,144.2,144.12,22.72]
[1728400224438,6.06,144.2,144.12,6.06]
[1728400224643,9.5287,144.2,144.17,3.4692]
[1728400225548,9.5287,144.2,144.12,6.06]
[1728400225748,9.5287,144.2,144.18,3.469]
[1728400226944,9.5287,144.2,144.17,3.4692]
[1728400227241,6.06,144.2,144.18,3.4688]
[1728400227437,6.06,144.2,144.12,6.06]
[1728400228947,6.06,144.2,144.18,3.4689]
[1728400229532,9.5286,144.2,144.18,3.4689]
[1728400231248,9.5286,144.2,144.12,6.06]
[1728400231455,9.5286,144.2,144.18,3.469]
[1728400231645,9.5286,144.2,144.12,6.06]
[1728400231646,6.06,144.2,144.12,6.06]
[1728400231950,16.66,144.19,144.14,3.4698]
[1728400232144,18.0437,144.19,144.11,0.12502]
[1728400232544,18.0437,144.19,144.17,3.4691]
[1728400233046,1.3837,144.19,144.12,16.66]
[1728400233252,1.3837,144.19,144.18,3.4691]
[1728400233549,1.3837,144.19,144.12,16.66]
[1728400233550,6.06,144.2,144.12,16.66]
[1728400233751,6.06,144.2,144.19,3.4688]
[1728400234054,18.0606,144.22,144.14,9.58792314]
[1728400234247,21.5288,144.22,144.14,6.08]
[1728400234643,21.5288,144.22,144.14,9.61602816]
[1728400234644,18.0606,144.22,144.14,9.61602816]
[1728400234842,18.0606,144.22,144.14,11.02442816]
[1728400235544,18.0606,144.22,144.2,3.4685]
[1728400235745,18.0606,144.22,144.14,7.4884]
[1728400235947,3.4684,144.21,144.14,7.4884]
[1728400236145,18.0606,144.22,144.14,7.4884]
[1728400236146,18.0606,144.22,144.2,3.4686]
[1728400236544,18.0606,144.22,144.14,10.90342704]
[1728400236545,1.4006,144.22,144.21,3.4683]
[1728400236745,6.20502,144.23,144.15,16.66]
[1728400236955,0.12502,144.23,144.15,16.66]
[1728400237252,0.12502,144.23,144.22,3.4681]
[1728400238250,0.12502,144.23,144.21,3.4683]
[1728400239846,0.12502,144.23,144.18,6.06]
[1728400240047,0.12502,144.23,144.22,3.4681]
[1728400243653,0.12502,144.29,144.28,3.4666]
[1728400244754,0.12502,144.29,144.26,3.4669]
[1728400245463,16.66,144.28,144.25,3.4672]
[1728400245660,16.66,144.26,144.2,1.3081]
[1728400245962,16.66,144.26,144.2,7.3681]
[1728400246660,16.66,144.26,144.25,3.4674]
[1728400246869,1.4434,144.27,144.2,7.3681]
[1728400247372,1.4434,144.27,144.25,3.4673]
[1728400248659,1.4434,144.27,144.26,3.4671]
[1728400248955,6.18502,144.29,144.22,20.05269861]
[1728400248956,0.12502,144.29,144.22,20.05269861]
[1728400249157,0.12502,144.29,144.22,16.66]
[1728400249362,0.12502,144.29,144.28,3.4666]
[1728400249559,0.12502,144.29,144.23,3.53416218]
[1728400250454,0.12502,144.29,144.24,6.06]
[1728400250656,0.12502,144.29,144.24,22.72]
[1728400250955,0.12502,144.29,144.24,26.18863126]
[1728400251555,0.12502,144.29,144.28,3.4666]
[1728400256467,0.12502,144.29,144.26,3.467]
[1728400256772,0.12502,144.29,144.23,6.06]
[1728400256962,20.1267,144.28,144.25,3.4672]
[1728400259463,3.4671,144.26,144.2,17.9681]
[1728400259767,16.66,144.27,144.2,1.3081]
[1728400259959,18.0772,144.27,144.2,1.3081]
[1728400260159,3.4674,144.25,144.2,1.3081]
[1728400260358,18.0772,144.27,144.2,1.3081]
[1728400260760,1.4172,144.27,144.2,1.3081]
[1728400260966,1.4172,144.27,144.2,17.9681]
[1728400261168,1.4172,144.27,144.25,3.4672]
[1728400262567,4.8841,144.27,144.24,3.4675]
[1728400262771,4.8841,144.27,144.2,17.9681]
[1728400263872,3.4673,144.26,144.2,17.9681]
[1728400264464,3.4673,144.26,144.23,3.4677]
[1728400267361,21.47139693,144.27,144.22,3.468]
[1728400267571,1.4393,144.26,144.18,6.06]
[1728400267766,7.4993,144.26,144.18,6.06]
[1728400267966,7.4993,144.26,144.22,3.4681]
[1728400268160,7.4993,144.26,144.18,6.06]
[1728400269171,3.4675,144.25,144.18,6.06]
[1728400269878,3.4675,144.25,144.22,3.4679]
[1728400270072,7.4993,144.26,144.18,6.06]
[1728400270272,3.468,144.23,144.2,3.4684]
[1728400270471,7.4993,144.26,144.18,6.06]
[1728400270874,7.4993,144.26,144.17,16.78502]
[1728400271075,3.4677,144.24,144.17,22.84502]
[1728400271576,3.468,144.23,144.2,3.4684]
[1728400273378,3.4677,144.24,144.21,3.4682]
[1728400275871,3.4677,144.24,144.17,16.78502]
[1728400276070,3.4677,144.24,144.22,3.4681]
[1728400276276,3.4676,144.24,144.22,3.4681]
[1728400276580,16.66,144.23,144.17,0.12502]
[1728400276871,3.4689,144.19,144.17,0.12502]
[1728400277082,3.4689,144.19,144.15,3.4697]
[1728400277083,16.66,144.19,144.15,3.4697]
[1728400277269,1.403,144.18,144.11,1.44452]
[1728400277469,16.66,144.17,144.11,0.12502]
[1728400277675,16.66,144.17,144.12,3.4704]
[1728400277866,3.4701,144.14,144.11,0.12502]
[1728400278072,16.66,144.13,144.11,0.12502]
[1728400280680,20.1303,144.13,144.11,0.12502]
[1728400281268,3.4705,144.12,144.11,0.12502]
[1728400281477,18.0435,144.12,144.05,6.16502]
[1728400281783,18.0435,144.12,144.05,0.12502]
[1728400282170,16.66,144.1,144.05,0.12502]
[1728400282578,3.4714,144.09,144.06,3.4719]
[1728400282970,20.05968028,144.1,144.05,0.12502]
[1728400283379,16.66,144.08,144.05,0.12502]
[1728400283769,3.4719,144.07,144.05,0.12502]
[1728400283978,16.66,144.08,144.05,0.12502]
[1728400284371,3.4718,144.07,144.05,0.12502]
[1728400284576,16.66,144.08,144.05,0.12502]
[1728400285285,16.66,144.06,144.01,3.473]
[1728400285488,16.66,144.06,143.99,0.12502]
[1728400285784,6.04,144.08,143.99,0.12502]
[1728400285785,1.4364,144.05,143.99,16.78502]
[1728400286476,1.4364,144.05,144.03,3.4726]
[1728400286781,1.4364,144.05,143.99,0.12502]
[1728400287581,18.0964,144.05,143.99,0.12502]
[1728400287772,18.0964,144.05,144.0,3.4733]
[1728400287970,18.0964,144.05,143.99,0.12502]
[1728400288580,21.5687,144.05,143.99,0.12502]
[1728400288775,1.4364,144.05,143.99,0.12502]
[1728400289484,1.4364,144.05,144.02,3.4727]
[1728400290178,1.4364,144.05,143.99,0.12502]
[1728400290373,18.0964,144.05,143.99,0.12502]
[1728400290985,3.4727,144.03,144.0,3.4733]
[1728400291978,18.0964,144.05,143.99,0.12502]
[1728400292179,3.4725,144.04,144.01,3.4731]
[1728400292385,18.0964,144.05,143.99,0.12502]
[1728400294088,21.5687,144.05,144.02,3.4729]
[1728400295084,18.0964,144.05,143.99,0.12502]
[1728400295285,3.4725,144.04,144.01,3.473]
[1728400295587,16.66,144.03,143.99,0.12502]
[1728400295985,16.66,144.02,143.99,0.12502]
[1728400296586,3.4731,144.01,143.99,0.12502]
[1728400297376,20.133,144.02,143.99,3.59862]
[1728400298488,20.133,144.02,144.0,3.4734]
[1728400298689,3.473,144.02,144.0,3.4734]
[1728400298887,21.5687,144.05,143.99,0.12502]
[1728400299191,24.1364,144.05,144.02,3.4728]
[1728400299696,24.1364,144.05,144.0,3.4732]
[1728400299881,24.1364,144.05,143.99,0.12502]
[1728400300389,3.4726,144.04,144.01,3.473]
[1728400301191,27.6087,144.05,144.02,3.4728]
[1728400302486,3.4727,144.03,144.01,3.473]
[1728400302885,24.1364,144.05,143.99,0.12502]
[1728400302886,16.66,144.04,143.99,0.12502]
[1728400303098,20.1334,144.0,143.99,0.12502]
[1728400303782,20.1334,144.0,143.97,3.474]
[1728400303991,20.16560092,144.0,143.93,0.12502]
[1728400304180,16.66,143.98,143.93,0.12502]
[1728400304385,16.66,143.96,143.93,0.12502]
[1728400304983,20.1345,143.96,143.93,3.59992]
[1728400305384,20.21284715,143.98,143.93,0.12502]
[1728400305590,23.68684715,143.98,143.95,3.4745]
[1728400305995,20.21284715,143.98,143.93,0.12502]
[1728400306192,3.4743,143.97,143.94,3.4747]
[1728400306796,16.66,143.98,143.93,0.12502]
[1728400307089,20.134,143.98,143.95,3.4745]
[1728400307295,16.66,143.98,143.93,0.12502]
[1728400307494,3.4743,143.97,143.94,3.4748]
[1728400307790,16.66,143.96,143.94,3.4748]
[1728400307993,3.4748,143.94,143.93,0.12502]
[1728400308196,20.1348,143.94,143.93,0.12502]
[1728400309196,20.1347,143.95,143.93,0.12502]
[1728400309898,16.66,143.95,143.93,3.60002]
[1728400310097,16.66,143.95,143.93,0.12502]
[1728400310289,16.66,143.94,143.87,0.12502]
[1728400310488,16.66,143.91,143.87,0.12502]
[1728400310691,20.1356,143.91,143.88,3.4761]
[1728400310892,20.1356,143.91,143.87,0.12502]
[1728400310893,16.66,143.91,143.87,0.12502]
[1728400311385,16.66,143.91,143.88,3.4761]
[1728400311786,16.66,143.91,143.87,0.12502]
[1728400311995,16.66,143.91,143.89,3.476]
[1728400312498,24.0933,143.93,143.89,3.476]
[1728400312697,27.5685,143.93,143.89,3.476]
[1728400313102,27.5685,143.93,143.87,0.12502]
[1728400313298,27.5685,143.93,143.9,3.4757]
[1728400313487,3.4754,143.92,143.87,0.12502]
[1728400314091,24.0933,143.93,143.87,0.12502]
[1728400314092,27.5685,143.93,143.87,0.12502]
[1728400314587,24.0933,143.93,143.87,0.12502]
[1728400314792,27.5684,143.93,143.87,0.12502]
[1728400315300,27.5684,143.93,143.89,3.4759]
[1728400315492,3.4753,143.92,143.89,3.4759]
[1728400315896,24.0933,143.93,143.89,3.4759]
[1728400316090,24.0933,143.93,143.87,0.12502]
[1728400317094,3.4755,143.92,143.89,3.4759]
[1728400317292,24.0933,143.93,143.89,3.4759]
[1728400318097,6.04,143.93,143.87,0.12502]
[1728400318897,9.5152,143.93,143.9,3.4756]
[1728400319292,18.045,143.95,143.87,0.12502]
[1728400319498,24.085,143.95,143.87,0.12502]
[1728400319692,18.045,143.95,143.87,0.12502]
[1728400319897,1.385,143.95,143.88,16.66]
[1728400320111,7.4753,143.96,143.93,3.4749]
[1728400320296,16.66,143.97,143.89,6.04]
[1728400320898,20.1343,143.97,143.94,3.4748]
[1728400321298,20.1343,143.97,143.89,6.04]
[1728400321498,20.1343,143.97,143.93,3.4749]
[1728400321804,16.66,143.97,143.89,6.04]
[1728400322004,16.66,143.97,143.93,3.475]
[1728400322197,16.66,143.97,143.89,6.04]
[1728400322395,3.4745,143.96,143.93,3.4749]
[1728400322597,16.66,143.97,143.89,6.04]
[1728400322995,16.66,143.97,143.94,3.4746]
[1728400323800,16.66,143.95,143.89,6.04]
[1728400324300,16.66,143.93,143.89,3.4759]
[1728400324998,16.66,143.9,143.87,3.60132]
[1728400325206,20.1363,143.88,143.87,0.12502]
[1728400325908,16.66,143.88,143.87,0.12502]
[1728400326806,20.1363,143.88,143.87,0.12502]
[1728400327199,16.66,143.88,143.81,0.12502]
[1728400327400,16.66,143.82,143.81,0.12502]
[1728400327593,16.66,143.82,143.79,3.4784]
[1728400327798,16.66,143.82,143.75,0.12502]
[1728400328199,16.66,143.82,143.78,3.4786]
[1728400328506,20.1379,143.82,143.75,0.12502]
[1728400328707,20.1379,143.82,143.78,3.4785]
[1728400329208,16.66,143.82,143.75,0.12502]
[1728400329405,16.66,143.84,143.75,16.78502]
[1728400330112,20.1373,143.84,143.8,3.4781]
[1728400330309,16.66,143.84,143.75,16.78502]
[1728400330809,22.7,143.85,143.76,16.66]
[1728400331317,22.7,143.85,143.76,17.5371]
[1728400332407,22.7,143.85,143.82,3.4775]
[1728400332708,22.7,143.85,143.78,6.04]
[1728400332898,16.66,143.85,143.78,6.04]
[1728400333507,16.66,143.85,143.83,3.4774]
[1728400335310,16.66,143.84,143.76,0.8771]
[1728400335522,16.66,143.81,143.75,6.16502]
[1728400335811,16.66,143.81,143.79,3.4783]
[1728400336002,16.66,143.81,143.75,6.16502]
[1728400337007,16.66,143.8,143.75,0.12502]
[1728400337509,16.66,143.8,143.77,3.4787]
[1728400337705,16.66,143.8,143.75,0.12502]
[1728400337910,16.66,143.82,143.75,0.12502]
[1728400338308,3.478,143.81,143.78,3.4786]
[1728400338710,16.66,143.82,143.78,3.4786]
[1728400339017,20.1379,143.82,143.79,3.4783]
[1728400339514,20.1379,143.82,143.75,0.12502]
[1728400341213,3.4781,143.81,143.75,0.12502]
[1728400342108,3.4781,143.81,143.78,3.4786]
[1728400344111,20.1379,143.82,143.78,3.4786]
[1728400344416,20.1379,143.82,143.79,3.4784]
[1728400344612,16.66,143.82,143.79,3.4784]
[1728400344812,16.66,143.82,143.75,0.12502]
[1728400345018,16.66,143.82,143.8,3.4781]
[1728400345315,16.66,143.82,143.75,0.12502]
[1728400345513,20.1378,143.82,143.79,3.4783]
[1728400346417,20.1378,143.82,143.8,3.4782]
[1728400347421,20.1378,143.82,143.75,0.12502]
[1728400347422,16.66,143.82,143.75,0.12502]
[1728400347725,16.66,143.82,143.8,3.4781]
[1728400350523,16.66,143.82,143.81,3.478]
[1728400350725,1.4179,143.85,143.75,0.12502]
[1728400350726,16.66,143.84,143.75,16.78502]
[1728400350931,1.4179,143.85,143.78,16.66]
[1728400351223,18.16862,143.87,143.78,16.66]
[1728400351930,21.64532,143.87,143.78,23.6174]
[1728400352331,21.64532,143.87,143.78,25.031]
[1728400352629,18.16862,143.87,143.78,25.031]
[1728400352826,18.16862,143.87,143.79,6.9569]
[1728400353034,18.16862,143.87,143.86,3.4768]
[1728400355726,0.12502,143.87,143.86,3.4768]
[1728400360338,0.12502,143.87,143.85,3.4769]
[1728400360537,0.12502,143.87,143.82,9.57034792]
[1728400361143,0.12502,143.87,143.86,3.4768]
[1728400366542,1.3779,143.92,143.86,6.02]
[1728400366743,1.3779,143.92,143.91,3.4756]
[1728400367552,1.3779,143.92,143.9,3.4757]
[1728400370552,0.12502,143.93,143.87,16.66]
[1728400371844,0.12502,143.93,143.92,3.4753]
[1728400375854,16.78502,143.93,143.86,6.02]
[1728400376248,20.26022,143.93,143.9,3.4758]
[1728400376560,16.78502,143.93,143.84,1.415]
[1728400376750,3.4756,143.91,143.87,3.4764]
[1728400377057,3.4756,143.91,143.85,6.02]
[1728400377252,2.683,143.92,143.85,6.02]
[1728400377559,6.1584,143.92,143.88,3.4762]
[1728400378151,2.683,143.92,143.89,3.4758]
[1728400378359,1.3707,143.91,143.89,3.4758]
[1728400378543,1.3707,143.91,143.85,6.02]
[1728400379047,1.3707,143.91,143.85,22.68]
[1728400379244,1.3707,143.91,143.9,3.4758]
[1728400379557,0.12502,143.93,143.85,22.68]
[1728400379558,0.12502,143.93,143.87,16.66]
[1728400379763,0.12502,143.93,143.92,3.4753]
[1728400381950,20.26022,143.93,143.87,3.4764]
[1728400382154,20.26022,143.93,143.85,6.02]
[1728400382454,16.78502,143.93,143.85,6.02]
[1728400382662,20.26022,143.93,143.9,3.4757]
[1728400384956,0.12502,143.93,143.91,3.4753]
[1728400385162,0.12502,143.93,143.86,6.02]
[1728400385547,0.12502,143.93,143.92,3.4753]